fUST/lending_fUST_20250727
["ID","MTS","AMOUNT","RATE_DAILY","PERIOD"]
[375200975,1753583453376,-460.0,0.0002,2]
[375200976,1753583453386,-460.0,0.0002,2]
[375200977,1753583453397,-460.0,0.0002,2]
[375200978,1753583453407,-460.0,0.0002,2]
[375200979,1753583453417,-460.0,0.0002,2]
[375200980,1753583453426,-460.0,0.0002,2]
[375200981,1753583453436,-460.0,0.0002,2]
[375200982,1753583453445,-460.0,0.0002,2]
[375200983,1753583453455,-457.75126319,0.0002,2]
[375200984,1753583453465,-460.0,0.0002,2]
[375200985,1753583453475,-2168.67,0.0002,2]
[375200986,1753583453484,-460.0,0.0002,2]
[375200987,1753583453494,-460.0,0.0002,2]
[375200988,1753583453503,-460.0,0.0002,2]
[375200989,1753583453514,-533.42,0.0002,2]
[375200990,1753583453527,-460.0,0.0002,2]
[375200991,1753583453537,-460.0,0.0002,2]
[375200992,1753583453546,-460.0,0.0002,2]
[375200993,1753583453555,-460.0,0.0002,2]
[375200994,1753583453565,-460.0,0.0002,2]
[375200995,1753583453575,-472.58164815,0.0002,2]
[375200996,1753583453585,-990.56,0.0002,2]
[375200997,1753583453595,-363.45308898,0.0002,2]
[375200998,1753583453605,-460.0,0.0002,2]
[375200999,1753583453615,-759.02,0.0002,2]
[375201000,1753583453625,-465.56228922,0.0002,2]
[375201001,1753583453635,-569.57,0.0002,2]
[375201002,1753583453644,-460.0,0.0002,2]
[375201003,1753583453653,-556.75791515,0.0002,2]
[375201004,1753583453662,-460.0,0.0002,2]
[375201005,1753583453672,-460.0,0.0002,2]
[375201006,1753583453683,-460.0,0.0002,2]
[375201007,1753583453693,-460.0,0.0002,2]
[375201008,1753583453704,-550.19,0.0002,2]
[375201009,1753583453714,-460.0,0.0002,2]
[375201010,1753583453723,-460.0,0.0002,2]
[375201011,1753583453733,-460.0,0.0002,2]
[375201012,1753583453743,-180.36535785,0.0002,2]
[375201013,1753583453754,-734.23,0.0002,2]
[375201014,1753583453764,-460.0,0.0002,2]
[375201015,1753583453775,-460.0,0.0002,2]
[375201016,1753583453786,-708.32,0.0002,2]
[375201017,1753583453796,-460.0,0.0002,2]
[375201018,1753583453807,-460.0,0.0002,2]
[375201019,1753583453818,-460.0,0.0002,2]
[375201020,1753583453827,-460.0,0.0002,2]
[375201021,1753583453837,-460.0,0.0002,2]
[375201022,1753583453846,-460.0,0.0002,2]
[375201023,1753583453855,-460.0,0.0002,2]
[375201024,1753583453864,-460.0,0.0002,2]
[375201025,1753583453874,-491.72,0.0002,2]
[375201026,1753583453883,-2306.74,0.0002,2]
[375201027,1753583453895,-460.0,0.0002,2]
[375201028,1753583453906,-460.0,0.0002,2]
[375201029,1753583453916,-460.0,0.0002,2]
[375201030,1753583453927,-688.32,0.0002,2]
[375201031,1753583453937,-460.0,0.0002,2]
[375201032,1753583453947,-460.0,0.0002,2]
[375201033,1753583453957,-460.0,0.0002,2]
[375201034,1753583453966,-632.34,0.0002,2]
[375201035,1753583453976,-460.0,0.0002,2]
[375201036,1753583453986,-670.75,0.0002,2]
[375201037,1753583453995,-3263.29,0.0002,2]
[375201038,1753583454005,-516.66,0.0002,2]
[375201039,1753583454014,-4844.33,0.0002,2]
[375201040,1753583454023,-599.61,0.0002,2]
[375201041,1753583454033,-1875.66,0.0002,2]
[375201042,1753583454042,-1340.76,0.0002,2]
[375201043,1753583454142,-460.0,0.0002,2]
[375201044,1753583454152,-724.58,0.0002,2]
[375201045,1753583454162,-278.35137865,0.0002,2]
[375201046,1753583454172,-464.3162045,0.0002,2]
[375201047,1753583454181,-629.06,0.0002,2]
[375201048,1753583454190,-460.0,0.0002,2]
[375201049,1753583454200,-1096.6,0.0002,2]
[375201050,1753583454210,-460.0,0.0002,2]
[375201051,1753583454220,-629.24,0.0002,2]
[375201052,1753583454230,-482.29803658,0.0002,2]
[375201053,1753583454240,-598.65,0.0002,2]
[375201054,1753583454250,-460.0,0.0002,2]
[375201055,1753583454260,-460.0,0.0002,2]
[375201056,1753583454270,-1031.22,0.0002,2]
[375201057,1753583454280,-246.13613671,0.0002,7]
[375201058,1753583454290,-460.0,0.0002,2]
[375201059,1753583454299,-469.18296753,0.0002,2]
[375201060,1753583454309,-3128.32,0.0002,2]
[375201061,1753583454319,-460.0,0.0002,2]
[375201062,1753583454328,-460.0,0.0002,2]
[375201063,1753583454338,-551.87,0.0002,2]
[375201064,1753583454347,-460.0,0.0002,2]
[375201065,1753583454357,-584.65265206,0.0002,2]
[375201066,1753583454366,-460.0,0.0002,2]
[375201067,1753583454375,-502.57,0.0002,2]
[375201068,1753583454384,-460.0,0.0002,2]
[375201069,1753583454394,-1708.28,0.0002,2]
[375201070,1753583454403,-460.0,0.0002,2]
[375201071,1753583454412,-540.2,0.0002,2]
[375201072,1753583454422,-460.0,0.0002,2]
[375201073,1753583454431,-480.15,0.0002,2]
[375201074,1753583454441,-460.0,0.0002,2]
[375201075,1753583454450,-460.0,0.0002,2]
[375201076,1753583454459,-460.0,0.0002,2]
[375201077,1753583454469,-530.23,0.0002,2]
[375201078,1753583454479,-460.0,0.0002,2]
[375201079,1753583454488,-509.37,0.0002,2]
[375201080,1753583454497,-460.0,0.0002,2]
[375201081,1753583454507,-460.0,0.0002,2]
[375201082,1753583454517,-735.01,0.0002,2]
[375201083,1753583454531,-460.0,0.0002,2]
[375201084,1753583454540,-460.0,0.0002,2]
[375201085,1753583454550,-460.0,0.0002,2]
[375201086,1753583454559,-2030.86,0.0002,2]
[375201087,1753583454570,-1674.76,0.0002,2]
[375201088,1753583454579,-460.0,0.0002,2]
[375201089,1753583454588,-460.0,0.0002,2]
[375201090,1753583454600,-460.0,0.0002,2]
[375201091,1753583454610,-331.73856812,0.0002,2]
[375201092,1753583454620,-679.1,0.0002,2]
[375201093,1753583454631,-460.0,0.0002,2]
[375201094,1753583454640,-460.0,0.0002,2]
[375201095,1753583454652,-2506.87,0.0002,2]
[375201096,1753583454663,-466.39,0.0002,2]
[375201097,1753583454674,-425.13520192,0.0002,2]
[375201098,1753583454684,-343.5889549,0.0002,2]
[375201099,1753583454693,-460.0,0.0002,2]
[375201100,1753583454703,-460.0,0.0002,2]
[375201101,1753583454713,-983.88,0.0002,2]
[375201102,1753583454724,-767.78,0.0002,2]
[375201103,1753583454733,-460.0,0.0002,2]
[375201104,1753583454742,-460.0,0.0002,2]
[375201105,1753583454752,-460.0,0.0002,2]
[375201106,1753583454761,-460.0,0.0002,2]
[375201107,1753583454771,-614.27,0.0002,2]
[375201108,1753583454781,-460.0,0.0002,2]
[375201109,1753583454790,-524.97918468,0.0002,2]
[375201110,1753583454799,-460.0,0.0002,2]
[375201111,1753583454809,-460.0,0.0002,2]
[375201112,1753583454819,-1803.34,0.0002,2]
[375201113,1753583454828,-460.0,0.0002005,2]
[375201114,1753583454837,-460.0,0.0002005,2]
[375201115,1753583454846,-460.0,0.0002005,2]
[375201116,1753583454855,-460.0,0.0002005,2]
[375201117,1753583454865,-460.0,0.0002005,2]
[375201118,1753583454875,-460.0,0.0002005,2]
[375201119,1753583454885,-460.0,0.0002005,2]
[375201120,1753583454896,-460.0,0.0002005,2]
[375201121,1753583454908,-464.91665648,0.0002005,2]
[375201122,1753583454918,-2386.91,0.0002005,2]
[375201123,1753583454929,-460.0,0.0002005,2]
[375201124,1753583454940,-2639.32,0.0002005,2]
[375201125,1753583454951,-736.92,0.0002005,2]
[375201126,1753583454961,-2430.03,0.0002005,2]
[375201127,1753583454971,-3325.38,0.0002005,2]
[375201128,1753583454981,-4389.18732489,0.00020107,2]
[375201129,1753583454991,-193.240997,0.00020187,2]
[375201130,1753583455000,-1500.0,0.00020268,2]
[375201131,1753583455010,-1500.0,0.00020268,2]
[375201132,1753583455019,-1500.0,0.00020268,2]
[375201133,1753583455029,-1500.0,0.00020268,2]
[375201134,1753583455039,-1500.0,0.00020268,2]
[375201135,1753583455048,-460.0,0.00020273,2]
[375201136,1753583455058,-553.65545854,0.00020273,2]
[375201137,1753583455069,-460.0,0.00020273,2]
[375201138,1753583455078,-460.0,0.00020273,2]
[375201139,1753583455088,-460.0,0.00020273,2]
[375201140,1753583455097,-460.0,0.00020273,2]
[375201141,1753583455107,-460.0,0.00020273,2]
[375201142,1753583455116,-460.0,0.00020273,2]
[375201143,1753583455125,-460.0,0.00020273,2]
[375201144,1753583455135,-460.0,0.00020273,2]
[375201145,1753583455144,-460.0,0.00020273,2]
[375201146,1753583455154,-606.82841294,0.00020273,2]
[375201147,1753583455163,-465.49613137,0.00020273,2]
[375201148,1753583455173,-460.0,0.00020273,2]
[375201149,1753583455183,-460.0,0.00020273,2]
[375201150,1753583455193,-460.0,0.00020273,2]
[375201151,1753583455203,-460.0,0.00020273,2]
[375201152,1753583455214,-460.0,0.00020273,2]
[375201153,1753583455224,-460.0,0.00020273,2]
[375201154,1753583455234,-589.15513084,0.00020273,2]
[375201155,1753583455245,-460.0,0.00020273,2]
[375201156,1753583455254,-460.0,0.00020273,2]
[375201157,1753583455264,-460.0,0.00020273,2]
[375201158,1753583455273,-465.73346958,0.00020273,2]
[375201159,1753583455283,-460.0,0.00020273,2]
[375201160,1753583455293,-460.0,0.00020273,2]
[375201161,1753583455303,-460.0,0.00020273,2]
[375201162,1753583455313,-265.40365917,0.00020273,2]
[375201163,1753583455323,-547.84,0.00020273,2]
[375201164,1753583455333,-631.34,0.00020273,2]
[375201165,1753583455343,-460.0,0.00020273,2]
[375201166,1753583455353,-460.0,0.00020273,2]
[375201167,1753583455363,-460.0,0.00020273,2]
[375201168,1753583455372,-460.0,0.00020273,2]
[375201169,1753583455382,-430.19800023,0.00020273,2]
[375201170,1753583455392,-460.0,0.00020273,2]
[375201171,1753583455401,-460.0,0.00020273,2]
[375201172,1753583455411,-532.26,0.00020273,2]
[375201173,1753583455421,-460.0,0.00020273,2]
[375201174,1753583455430,-460.0,0.00020273,2]
[375201175,1753583455440,-460.0,0.00020273,2]
[375201176,1753583455449,-460.0,0.00020273,2]
[375201177,1753583455458,-460.0,0.00020273,2]
[375201178,1753583455468,-464.56207732,0.00020273,2]
[375201179,1753583455477,-199.28404002,0.00020273,2]
[375201180,1753583455487,-460.0,0.00020273,2]
[375201181,1753583455496,-460.0,0.00020273,2]
[375201182,1753583455506,-460.0,0.00020273,2]
[375201183,1753583455515,-822.33,0.00020273,2]
[375201184,1753583455528,-460.0,0.00020273,2]
[375201185,1753583455538,-460.0,0.00020273,2]
[375201186,1753583455547,-460.0,0.00020273,2]
[375201187,1753583455557,-876.43,0.00020273,2]
[375201188,1753583455568,-460.0,0.00020273,2]
[375201189,1753583455578,-494.95,0.00020273,2]
[375201190,1753583455587,-285.7263568,0.00020273,2]
[375201191,1753583455727,-174.2736432,0.00020273,2]
[375201192,1753583455736,-471.60251607,0.00020273,2]
[375201193,1753583455745,-460.0,0.00020273,2]
[375201194,1753583455754,-460.0,0.00020273,2]
[375201195,1753583455764,-460.0,0.00020273,2]
[375201196,1753583455773,-460.0,0.00020273,2]
[375201197,1753583455782,-891.87,0.00020273,2]
[375201198,1753583455791,-460.0,0.00020273,2]
[375201199,1753583455801,-473.48945135,0.00020273,2]
[375201200,1753583455810,-469.1267352,0.00020273,2]
[375201201,1753583455819,-530.91675955,0.00020273,2]
[375201202,1753583455829,-460.0,0.00020273,2]
[375201203,1753583455838,-460.0,0.00020273,2]
[375201204,1753583455847,-460.0,0.00020273,2]
[375201205,1753583455856,-460.0,0.00020273,2]
[375201206,1753583455866,-460.0,0.00020273,2]
[375201207,1753583455875,-208.77836746,0.00020273,2]
[375201208,1753583455884,-460.0,0.00020273,2]
[375201209,1753583455893,-513.69,0.00020273,2]
[375201210,1753583455902,-460.0,0.00020273,2]
[375201211,1753583455912,-460.0,0.00020273,2]
[375201212,1753583455922,-460.0,0.00020273,2]
[375201213,1753583456019,-499.86,0.00020273,2]
[375201214,1753583456029,-460.0,0.00020273,2]
[375201215,1753583456039,-460.0,0.00020273,2]
[375201216,1753583456048,-460.0,0.00020273,2]
[375201217,1753583456058,-498.19,0.00020273,2]
[375201218,1753583456068,-460.0,0.00020273,2]
[375201219,1753583456078,-460.0,0.00020273,2]
[375201220,1753583456088,-460.0,0.00020273,2]
[375201221,1753583456098,-460.0,0.00020273,2]
[375201222,1753583456107,-460.0,0.00020273,2]
[375201223,1753583456117,-460.0,0.00020273,2]
[375201224,1753583456126,-460.0,0.00020273,2]
[375201225,1753583456135,-460.0,0.00020273,2]
[375201226,1753583456145,-460.0,0.00020273,2]
[375201227,1753583456155,-2168.67,0.00020273,2]
[375201228,1753583456164,-460.0,0.00020273,2]
[375201229,1753583456172,-547.83651058,0.00020273,2]
[375201230,1753583456182,-460.0,0.00020273,2]
[375201231,1753583456192,-533.42,0.00020273,2]
[375201232,1753583456205,-460.0,0.00020273,2]
[375201233,1753583456217,-543.37768317,0.00020273,2]
[375201234,1753583456226,-464.99024026,0.00020273,2]
[375201235,1753583456236,-460.0,0.00020273,2]
[375201236,1753583456246,-990.56,0.00020273,2]
[375201237,1753583456255,-460.0,0.00020273,2]
[375201238,1753583456265,-759.02,0.00020273,2]
[375201239,1753583456274,-569.57,0.00020273,2]
[375201240,1753583456284,-429.61571126,0.00020273,2]
[375201241,1753583456293,-460.0,0.00020273,2]
[375201242,1753583456302,-184.15984621,0.00020273,2]
[375201243,1753583456311,-460.0,0.00020273,2]
[375201244,1753583456321,-478.49578773,0.00020273,2]
[375201245,1753583456330,-550.19,0.00020273,2]
[375201246,1753583456340,-460.0,0.00020273,2]
[375201247,1753583456350,-198.69625708,0.00020273,2]
[375201248,1753583456360,-466.62071849,0.00020273,2]
[375201249,1753583456370,-734.23,0.00020273,2]
[375201250,1753583456379,-460.0,0.00020273,2]
[375201251,1753583456389,-460.0,0.00020273,2]
[375201252,1753583456399,-708.32,0.00020273,2]
[375201253,1753583456409,-460.0,0.00020273,2]
[375201254,1753583456419,-460.0,0.00020273,2]
[375201255,1753583456428,-460.0,0.00020273,2]
[375201256,1753583456438,-469.89172207,0.00020273,2]
[375201257,1753583456447,-460.0,0.00020273,2]
[375201258,1753583456457,-460.0,0.00020273,2]
[375201259,1753583456468,-460.0,0.00020273,2]
[375201260,1753583456478,-460.0,0.00020273,2]
[375201261,1753583456488,-491.72,0.00020273,2]
[375201262,1753583456497,-2306.74,0.00020273,2]
[375201263,1753583456507,-460.0,0.00020273,2]
[375201264,1753583456518,-464.89344374,0.00020273,2]
[375201265,1753583456534,-460.0,0.00020273,2]
[375201266,1753583456544,-688.32,0.00020273,2]
[375201267,1753583456554,-460.0,0.00020273,2]
[375201268,1753583456564,-466.98506485,0.00020273,2]
[375201269,1753583456573,-460.0,0.00020273,2]
[375201270,1753583456583,-632.34,0.00020273,2]
[375201271,1753583456592,-460.0,0.00020273,2]
[375201272,1753583456604,-670.75,0.00020273,2]
[375201273,1753583456614,-3263.29,0.00020273,2]
[375201274,1753583456623,-516.66,0.00020273,2]
[375201275,1753583456634,-4844.33,0.00020273,2]
[375201276,1753583456645,-599.61,0.00020273,2]
[375201277,1753583456654,-1875.66,0.00020273,2]
[375201278,1753583456663,-1340.76,0.00020273,2]
[375201279,1753583456673,-460.0,0.00020273,2]
[375201280,1753583456682,-724.58,0.00020273,2]
[375201281,1753583456693,-629.06,0.00020273,2]
[375201282,1753583456702,-460.0,0.00020273,2]
[375201283,1753583456711,-1096.6,0.00020273,2]
[375201284,1753583456722,-460.0,0.00020273,2]
[375201285,1753583456731,-629.24,0.00020273,2]
[375201286,1753583456741,-598.65,0.00020273,2]
[375201287,1753583456751,-460.0,0.00020273,2]
[375201288,1753583456763,-460.0,0.00020273,2]
[375201289,1753583456773,-1031.22,0.00020273,2]
[375201290,1753583456784,-460.0,0.00020273,2]
[375201291,1753583456794,-3128.32,0.00020273,2]
[375201292,1753583456804,-460.0,0.00020273,2]
[375201293,1753583456814,-460.0,0.00020273,2]
[375201294,1753583456825,-551.87,0.00020273,2]
[375201295,1753583456834,-460.0,0.00020273,2]
[375201296,1753583456844,-460.0,0.00020273,2]
[375201297,1753583456854,-502.57,0.00020273,2]
[375201298,1753583456866,-460.0,0.00020273,2]
[375201299,1753583456877,-1708.28,0.00020273,2]
[375201300,1753583456886,-460.0,0.00020273,2]
[375201301,1753583456895,-540.2,0.00020273,2]
[375201302,1753583456906,-465.40000415,0.00020273,2]
[375201303,1753583456918,-480.15,0.00020273,2]
[375201304,1753583456928,-460.0,0.00020273,2]
[375201305,1753583456937,-460.0,0.00020273,2]
[375201306,1753583456947,-460.0,0.00020273,2]
[375201307,1753583456956,-530.23,0.00020273,2]
[375201308,1753583456967,-460.0,0.00020273,2]
[375201309,1753583456976,-509.37,0.00020273,2]
[375201310,1753583456985,-469.34021515,0.00020273,2]
[375201311,1753583456995,-603.96312297,0.00020273,2]
[375201312,1753583457006,-735.01,0.00020273,2]
[375201313,1753583457015,-460.0,0.00020273,2]
[375201314,1753583457024,-460.0,0.00020273,2]
[375201315,1753583457036,-460.0,0.00020273,2]
[375201316,1753583457046,-2030.86,0.00020273,2]
[375201317,1753583457055,-1674.76,0.00020273,2]
[375201318,1753583457065,-460.0,0.00020273,2]
[375201319,1753583457074,-460.0,0.00020273,2]
[375201320,1753583457083,-460.0,0.00020273,2]
[375201321,1753583457093,-679.1,0.00020273,2]
[375201322,1753583457103,-460.0,0.00020273,2]
[375201323,1753583457113,-460.0,0.00020273,2]
[375201324,1753583457124,-2506.87,0.00020273,2]
[375201325,1753583457134,-466.39,0.00020273,2]
[375201326,1753583457145,-460.0,0.00020273,2]
[375201327,1753583457156,-460.0,0.00020273,2]
[375201328,1753583457167,-983.88,0.00020273,2]
[375201329,1753583457177,-767.78,0.00020273,2]
[375201330,1753583457187,-460.0,0.00020273,2]
[375201331,1753583457196,-460.0,0.00020273,2]
[375201332,1753583457205,-460.0,0.00020273,2]
[375201333,1753583457215,-460.0,0.00020273,2]
[375201334,1753583457225,-614.27,0.00020273,2]
[375201335,1753583457234,-460.0,0.00020273,2]
[375201336,1753583457243,-460.0,0.00020273,2]
[375201337,1753583457252,-460.0,0.00020273,2]
[375201338,1753583457262,-1803.34,0.00020273,2]
[375201339,1753583457271,-1623.10362345,0.00020286,2]
[375201340,1753583457281,-4389.18732489,0.00020314,3]
[375201341,1753583457290,-1000.0,0.00020321,2]
[375201342,1753583457299,-1000.0,0.00020321,2]
[375201343,1753583457309,-503.67830945,0.00020321,2]
[375201344,1753583457318,-1000.0,0.00020321,2]
[375201345,1753583457327,-1000.0,0.00020321,2]
[375201346,1753583457337,-1000.0,0.00020321,2]
[375201347,1753583457346,-1000.0,0.00020321,2]
[375201348,1753583457355,-460.0,0.00020324,2]
[375201349,1753583457364,-460.0,0.00020324,2]
[375201350,1753583457373,-460.0,0.00020324,2]
[375201351,1753583457382,-460.0,0.00020324,2]
[375201352,1753583457391,-460.0,0.00020324,2]
[375201353,1753583457401,-282.77290652,0.00020324,2]
[375201354,1753583457411,-460.0,0.00020324,2]
[375201355,1753583457419,-460.0,0.00020324,2]
[375201356,1753583457428,-2386.91,0.00020324,2]
[375201357,1753583457437,-460.0,0.00020324,2]
[375201358,1753583457447,-2639.32,0.00020324,2]
[375201359,1753583457456,-736.92,0.00020324,2]
[375201360,1753583457466,-2430.03,0.00020324,2]
[375201361,1753583457475,-3325.38,0.00020324,2]
[375201362,1753583457484,-150.0,0.00020423,2]
[375201363,1753583457494,-654.64,0.00020438,3]
[375201364,1753583457504,-327.32,0.00020438,3]
[375201365,1753583457513,-4702.83374252,0.00020447,2]
[375201366,1753583457527,-168.23,0.0002049,2]
[375201367,1753583457535,-232.6809908,0.00020521,3]
[375201368,1753583457544,-4389.18732489,0.00020521,3]
[375201369,1753583457553,-460.0,0.00020547,2]
[375201370,1753583457563,-460.0,0.00020547,2]
[375201371,1753583457572,-455.0,0.00020547,2]
[375201372,1753583457581,-460.0,0.00020547,2]
[375201373,1753583457590,-460.0,0.00020547,2]
[375201374,1753583457601,-460.0,0.00020547,2]
[375201375,1753583457609,-460.0,0.00020547,2]
[375201376,1753583457618,-460.0,0.00020547,2]
[375201377,1753583457628,-460.0,0.00020547,2]
[375201378,1753583457637,-460.0,0.00020547,2]
[375201379,1753583457646,-460.0,0.00020547,2]
[375201380,1753583457656,-460.0,0.00020547,2]
[375201381,1753583457665,-460.0,0.00020547,2]
[375201382,1753583457674,-460.0,0.00020547,2]
[375201383,1753583457683,-476.40567855,0.00020547,2]
[375201384,1753583457693,-460.0,0.00020547,2]
[375201385,1753583457703,-460.0,0.00020547,2]
[375201386,1753583457713,-460.0,0.00020547,2]
[375201387,1753583457722,-471.9289856,0.00020547,2]
[375201388,1753583457731,-547.84,0.00020547,2]
[375201389,1753583457741,-631.34,0.00020547,2]
[375201390,1753583457751,-460.0,0.00020547,2]
[375201391,1753583457762,-460.0,0.00020547,2]
[375201392,1753583457772,-460.0,0.00020547,2]
[375201393,1753583457781,-460.0,0.00020547,2]
[375201394,1753583457792,-460.0,0.00020547,2]
[375201395,1753583457881,-460.0,0.00020547,2]
[375201396,1753583457893,-532.26,0.00020547,2]
[375201397,1753583457902,-460.0,0.00020547,2]
[375201398,1753583457912,-460.0,0.00020547,2]
[375201399,1753583457922,-460.0,0.00020547,2]
[375201400,1753583457932,-505.49423003,0.00020547,2]
[375201401,1753583457941,-460.0,0.00020547,2]
[375201402,1753583457951,-465.77853043,0.00020547,2]
[375201403,1753583457961,-460.0,0.00020547,2]
[375201404,1753583457971,-460.0,0.00020547,2]
[375201405,1753583457981,-822.33,0.00020547,2]
[375201406,1753583457991,-460.0,0.00020547,2]
[375201407,1753583458001,-474.12072003,0.00020547,2]
[375201408,1753583458011,-462.63106615,0.00020547,2]
[375201409,1753583458022,-876.43,0.00020547,2]
[375201410,1753583458033,-460.0,0.00020547,2]
[375201411,1753583458043,-494.95,0.00020547,2]
[375201412,1753583458053,-460.0,0.00020547,2]
[375201413,1753583458063,-460.0,0.00020547,2]
[375201414,1753583458072,-460.0,0.00020547,2]
[375201415,1753583458082,-469.56775051,0.00020547,2]
[375201416,1753583458092,-460.0,0.00020547,2]
[375201417,1753583458103,-891.87,0.00020547,2]
[375201418,1753583458112,-460.0,0.00020547,2]
[375201419,1753583458122,-460.0,0.00020547,2]
[375201420,1753583458131,-460.0,0.00020547,2]
[375201421,1753583458140,-460.0,0.00020547,2]
[375201422,1753583458149,-460.0,0.00020547,2]
[375201423,1753583458159,-460.0,0.00020547,2]
[375201424,1753583458169,-460.0,0.00020547,2]
[375201425,1753583458179,-513.69,0.00020547,2]
[375201426,1753583458189,-460.0,0.00020547,2]
[375201427,1753583458198,-460.0,0.00020547,2]
[375201428,1753583458208,-460.0,0.00020547,2]
[375201429,1753583458218,-499.86,0.00020547,2]
[375201430,1753583458227,-460.0,0.00020547,2]
[375201431,1753583458237,-460.0,0.00020547,2]
[375201432,1753583458247,-460.0,0.00020547,2]
[375201433,1753583458257,-498.19,0.00020547,2]
[375201434,1753583458266,-460.0,0.00020547,2]
[375201435,1753583458276,-460.0,0.00020547,2]
[375201436,1753583458285,-460.0,0.00020547,2]
[375201437,1753583458295,-460.0,0.00020547,2]
[375201438,1753583458305,-460.0,0.00020547,2]
[375201439,1753583458315,-460.0,0.00020547,2]
[375201440,1753583458324,-460.0,0.00020547,2]
[375201441,1753583458334,-460.0,0.00020547,2]
[375201442,1753583458343,-460.0,0.00020547,2]
[375201443,1753583458353,-2168.67,0.00020547,2]
[375201444,1753583458363,-460.0,0.00020547,2]
[375201445,1753583458372,-460.0,0.00020547,2]
[375201446,1753583458382,-533.42,0.00020547,2]
[375201447,1753583458391,-460.0,0.00020547,2]
[375201448,1753583458401,-460.0,0.00020547,2]
[375201449,1753583458410,-990.56,0.00020547,2]
[375201450,1753583458420,-460.0,0.00020547,2]
[375201451,1753583458429,-759.02,0.00020547,2]
[375201452,1753583458440,-569.57,0.00020547,2]
[375201453,1753583458449,-460.0,0.00020547,2]
[375201454,1753583458459,-460.0,0.00020547,2]
[375201455,1753583458469,-550.19,0.00020547,2]
[375201456,1753583458478,-460.0,0.00020547,2]
[375201457,1753583458488,-734.23,0.00020547,2]
[375201458,1753583458497,-460.0,0.00020547,2]
[375201459,1753583458507,-460.0,0.00020547,2]
[375201460,1753583458517,-708.32,0.00020547,2]
[375201461,1753583458531,-460.0,0.00020547,2]
[375201462,1753583458541,-460.0,0.00020547,2]
[375201463,1753583458550,-460.0,0.00020547,2]
[375201464,1753583458560,-460.0,0.00020547,2]
[375201465,1753583458570,-460.0,0.00020547,2]
[375201466,1753583458580,-163.5646816,0.00020547,2]
[375201467,1753583458589,-460.0,0.00020547,2]
[375201468,1753583458601,-491.72,0.00020547,2]
[375201469,1753583458610,-2306.74,0.00020547,2]
[375201470,1753583458620,-460.0,0.00020547,2]
[375201471,1753583458629,-460.0,0.00020547,2]
[375201472,1753583458639,-688.32,0.00020547,2]
[375201473,1753583458648,-467.2535037,0.00020547,2]
[375201474,1753583458658,-460.0,0.00020547,2]